bitfinex-derivatives/quotes_BTCF0:USTF0_20240820
["timestamp","ask_amount","ask_price","bid_price","bid_amount"]
[1724163275430,1.25788,60353.0,60342.0,0.00024874]
[1724163275719,0.3608,60343.0,60342.0,0.066266]
[1724163276121,3.77,60343.0,60342.0,0.216266]
[1724163276421,4.10348426,60343.0,60342.0,0.066266]
[1724163278617,3.77,60343.0,60342.0,0.132532]
[1724163278917,3.77,60343.0,60342.0,0.493332]
[1724163279125,3.77,60343.0,60342.0,0.427066]
[1724163279316,3.77,60343.0,60342.0,0.066266]
[1724163279621,4.10348426,60343.0,60342.0,0.066266]
[1724163281418,4.16877901,60343.0,60342.0,0.066266]
[1724163281620,0.3608,60348.0,60342.0,0.3608]
[1724163281621,0.06529475,60347.0,60342.0,0.3608]
[1724163281822,0.69428426,60348.0,60347.0,0.066261]
[1724163282126,4.1308,60348.0,60347.0,0.066261]
[1724163282321,3.77,60348.0,60347.0,0.066261]
[1724163282715,3.77,60348.0,60347.0,0.427061]
[1724163283111,4.10348426,60348.0,60347.0,0.427061]
[1724163283309,4.10348426,60348.0,60347.0,0.066261]
[1724163283921,3.77,60348.0,60347.0,0.066261]
[1724163284119,4.10348426,60348.0,60347.0,0.066261]
[1724163284519,4.10348426,60348.0,60341.0,0.3608]
[1724163284816,0.06529475,60346.0,60345.0,0.066262]
[1724163285223,0.39877901,60346.0,60345.0,0.066262]
[1724163285427,4.16877901,60346.0,60345.0,0.066262]
[1724163285829,0.066264,60344.0,60339.0,0.066269]
[1724163286135,0.066264,60344.0,60334.0,0.3608]
[1724163286136,0.3608,60340.0,60328.0,0.3608]
[1724163286336,0.08155672,60340.0,60339.0,0.5369]
[1724163286518,0.06545878,60355.0,60339.0,1.4185]
[1724163286717,0.45758444,60367.0,60353.0,0.8977]
[1724163286718,0.06546708,60358.0,60353.0,0.8977]
[1724163286916,0.06546694,60360.0,60357.0,0.3608]
[1724163287124,0.3608,60381.0,60365.0,0.066241]
[1724163287125,0.06546694,60367.0,60365.0,0.066241]
[1724163287325,0.06546694,60371.0,60369.0,0.066236]
[1724163287526,0.06546694,60376.0,60370.0,0.5369]
[1724163287727,0.3989512,60376.0,60371.0,0.066234]
[1724163287936,0.33348426,60376.0,60370.0,0.5369]
[1724163288127,0.39919917,60376.0,60374.0,0.06623]
[1724163288336,0.33373223,60376.0,60374.0,0.06623]
[1724163288639,0.00024797,60376.0,60374.0,0.06623]
[1724163288819,0.00024797,60376.0,60372.0,0.3608]
[1724163289021,0.33373223,60376.0,60372.0,0.3608]
[1724163289332,0.11332293,60399.0,60372.0,0.3608]
[1724163289333,0.06546694,60382.0,60381.0,0.066223]
[1724163289630,0.06546694,60395.0,60381.0,1.5946]
[1724163289836,0.33348426,60395.0,60394.0,0.5369]
[1724163290222,0.045,60409.0,60394.0,0.6869]
[1724163290223,3.77,60402.0,60394.0,0.6869]
[1724163290419,3.77,60402.0,60394.0,0.7758]
[1724163290726,0.3608,60411.0,60401.0,0.427001]
[1724163290919,0.3608,60402.0,60395.0,0.87555418]
[1724163291124,0.3608,60402.0,60395.0,0.6258]
[1724163291335,0.69428426,60402.0,60395.0,0.6258]
[1724163291831,0.3608,60396.0,60392.0,0.00024851]
[1724163292227,0.49672,60395.0,60392.0,0.00024851]
[1724163292535,0.3608,60393.0,60374.0,0.9866]
[1724163292831,0.3608,60382.0,60374.0,0.5208]
[1724163293031,0.3608,60382.0,60374.0,0.3608]
[1724163293235,0.3608,60377.0,60370.0,0.0001518]
[1724163293534,0.69428426,60377.0,60370.0,0.0001518]
[1724163293730,0.00024851,60380.0,60370.0,0.1701518]
[1724163294039,0.00024851,60380.0,60375.0,0.6258]
[1724163294333,0.00024851,60380.0,60379.0,0.3608]
[1724163294532,0.3608,60389.0,60379.0,0.3608]
[1724163294533,0.3608,60389.0,60385.0,0.066218]
[1724163294726,0.3608,60389.0,60385.0,0.3608]
[1724163294727,0.33348426,60389.0,60385.0,0.3608]
[1724163295035,3.77,60388.0,60385.0,0.3608]
[1724163295536,4.10348426,60388.0,60385.0,0.3608]
[1724163295733,4.10348426,60388.0,60380.0,0.00024851]
[1724163295734,0.3608,60386.0,60380.0,0.00024851]
[1724163295932,0.76050326,60386.0,60380.0,0.00024851]
[1724163296233,0.3608,60381.0,60380.0,0.00024851]
[1724163296623,0.33348426,60381.0,60380.0,0.00024851]
[1724163296922,1e-08,60388.0,60387.0,0.066217]
[1724163297137,0.00104001,60388.0,60387.0,1.1266]
[1724163297329,3.77,60406.0,60387.0,2.2732389]
[1724163297532,3.77,60406.0,60397.0,0.3608]
[1724163297732,3.77509826,60406.0,60397.0,0.3608]
[1724163297925,3.77509826,60406.0,60398.0,0.24948223]
[1724163298138,3.77509826,60406.0,60404.0,0.066197]
[1724163298727,3.77509826,60406.0,60397.0,0.3608]
[1724163298936,3.77509826,60406.0,60396.0,0.00024851]
[1724163299341,3.77509826,60406.0,60399.0,0.066203]
[1724163299641,3.77509826,60406.0,60400.0,0.066202]
[1724163300332,3.77509826,60406.0,60396.0,0.36104851]
[1724163300640,3.77509826,60406.0,60396.0,0.00024851]
[1724163300641,0.3608,60401.0,60396.0,0.00024851]
[1724163300935,3.77509826,60406.0,60396.0,0.00024851]
[1724163300936,0.3608,60403.0,60396.0,0.00024851]
[1724163301326,0.3608,60398.0,60396.0,0.00024851]
[1724163301525,0.3608,60398.0,60379.0,0.066225]
[1724163301738,0.3608,60381.0,60370.0,0.0001518]
[1724163302233,0.36589826,60381.0,60370.0,0.3609518]
[1724163302536,0.36589826,60381.0,60376.0,0.066229]
[1724163302729,0.72669826,60381.0,60370.0,0.0663868]
[1724163302928,0.3608,60374.0,60370.0,0.0001518]
[1724163303432,0.36589826,60374.0,60370.0,0.0001518]
[1724163303836,0.3608,60371.0,60357.0,0.692049]
[1724163304038,0.3608,60361.0,60357.0,0.066249]
[1724163304342,0.3608,60361.0,60352.0,0.3608]
[1724163304532,0.36589826,60361.0,60352.0,0.3608]
[1724163304726,0.36589826,60361.0,60353.0,0.066254]
[1724163305137,0.3608,60355.0,60353.0,0.066254]
[1724163305447,0.3608,60355.0,60347.0,0.3608]
[1724163305448,0.36589826,60361.0,60347.0,0.3608]
[1724163305747,0.3608,60355.0,60346.0,0.067102]
[1724163305942,0.3608,60349.0,60338.0,0.427069]
[1724163306134,0.3608,60349.0,60339.0,0.066269]
[1724163306335,0.36589826,60349.0,60339.0,0.066269]
[1724163306643,0.36589826,60349.0,60336.0,0.00084]
[1724163306644,0.3608,60342.0,60336.0,0.00084]
[1724163306936,0.3608,60337.0,60334.0,0.00019943]
[1724163307139,0.3608,60337.0,60321.0,0.3608]
[1724163307439,0.3608,60322.0,60317.0,1.36527]
[1724163307736,0.3608,60322.0,60317.0,1.36443]
[1724163308138,0.00013936,60321.0,60317.0,1.36443]
[1724163308342,0.3608,60318.0,60317.0,0.8874622]
[1724163308741,1.25816,60318.0,60317.0,0.8007622]
[1724163309046,5.02816,60318.0,60317.0,0.23788242]
[1724163309339,5.02816,60318.0,60317.0,0.06448242]
[1724163309546,5.02816,60318.0,60317.0,0.05638242]
[1724163309742,5.16816,60318.0,60317.0,0.05638242]
[1724163309948,0.066297,60314.0,60313.0,0.00024851]
[1724163310241,0.4974,60314.0,60296.0,0.00017775]
[1724163310445,0.3608,60298.0,60297.0,0.066315]
[1724163310648,4.13094238,60298.0,60297.0,0.066315]
[1724163310844,5.02846238,60298.0,60297.0,0.066315]
[1724163311147,5.02846238,60298.0,60296.0,0.00017775]
[1724163311351,0.49752,60297.0,60296.0,0.00017775]
[1724163311847,0.89752,60297.0,60296.0,0.00017775]
[1724163312345,0.42817738,60298.0,60296.0,0.00017775]
[1724163312346,0.00014238,60298.0,60297.0,0.066315]
[1724163312539,3.77014238,60298.0,60297.0,0.066315]
[1724163313046,4.26766238,60298.0,60297.0,0.066315]
[1724163313242,4.66766238,60298.0,60296.0,0.00017775]
[1724163313546,4.66766238,60298.0,60296.0,0.06649375]
[1724163313547,3.77014238,60298.0,60296.0,0.06649375]
[1724163313740,0.00014238,60298.0,60296.0,0.06649375]
[1724163314146,0.00014238,60298.0,60296.0,0.00017775]
[1724163314850,0.00014238,60298.0,60296.0,0.06649375]
[1724163315151,0.00014238,60298.0,60296.0,0.00017775]
[1724163315336,0.49752,60297.0,60296.0,0.00017775]
[1724163315737,0.89752,60297.0,60296.0,0.00017775]
[1724163316843,1.05752,60297.0,60296.0,0.00017775]
[1724163317948,0.06645738,60298.0,60296.0,0.00017775]
[1724163317949,0.00014238,60298.0,60297.0,0.066315]
[1724163318248,0.066315,60297.0,60296.0,0.00017775]
[1724163318444,0.563835,60297.0,60296.0,0.00017775]
[1724163318636,0.963875,60297.0,60296.0,0.00017775]
[1724163318949,4.733875,60297.0,60296.0,0.00017775]
[1724163320154,4.96019,60297.0,60296.0,0.00017775]
[1724163321245,4.96019,60297.0,60291.0,7.3e-07]
[1724163321246,0.198963,60292.0,60291.0,7.3e-07]
[1724163321546,0.719763,60292.0,60291.0,7.3e-07]
[1724163321749,1.617363,60292.0,60291.0,7.3e-07]
[1724163321950,5.387363,60292.0,60291.0,7.3e-07]
[1724163322248,0.066349,60267.0,60261.0,0.0598]
[1724163322448,0.3608,60265.0,60261.0,0.0598]
[1724163322939,0.3608,60262.0,60261.0,0.0598]
[1724163323136,0.3608,60262.0,60257.0,0.0585]
[1724163323343,0.427158,60258.0,60257.0,0.0585]
[1724163323537,4.197158,60258.0,60257.0,0.0585]
[1724163323844,4.197158,60258.0,60255.0,0.00024873]
[1724163323845,5.02868,60258.0,60255.0,0.00024873]
[1724163324039,0.06636,60256.0,60255.0,0.00024873]
[1724163324448,0.96424,60256.0,60255.0,0.00024873]
[1724163324651,3.77,60256.0,60255.0,0.00024873]
[1724163324953,0.3608,60262.0,60255.0,0.00024873]
[1724163325140,0.00018584,60266.0,60265.0,0.066351]
[1724163325539,0.3608,60277.0,60265.0,0.066351]
[1724163325760,0.3608,60277.0,60270.0,0.3608]
[1724163326053,0.3608,60277.0,60276.0,0.066338]
[1724163326545,0.36092934,60277.0,60276.0,0.066338]
[1724163326750,0.36092934,60277.0,60271.0,0.0554]
[1724163326956,0.36092934,60277.0,60270.0,0.06659295]
[1724163326957,0.427143,60272.0,60270.0,0.00024895]
[1724163327153,0.427143,60272.0,60270.0,2.2e-07]
[1724163327352,0.49776,60271.0,60262.0,0.0556]
[1724163327657,0.3608,60263.0,60262.0,0.0556]
[1724163328050,1.25878997,60263.0,60254.0,0.0595]
[1724163328251,0.3608,60255.0,60254.0,0.0595]
[1724163329049,5.02868,60255.0,60254.0,0.0595]
[1724163329255,4.1308,60255.0,60254.0,0.0595]
[1724163329558,0.00024895,60261.0,60258.0,0.066358]
[1724163329760,0.00024895,60261.0,60260.0,0.066356]
[1724163329944,3.77024895,60261.0,60254.0,0.0595]
[1724163330345,3.77024895,60261.0,60260.0,0.066356]
[1724163330959,3.77024895,60261.0,60256.0,0.06636]
[1724163331453,3.77024895,60261.0,60254.0,0.0595]
[1724163331659,3.77024895,60261.0,60260.0,0.066356]
[1724163332057,3.77024895,60261.0,60254.0,0.0595]
[1724163332663,3.77024895,60261.0,60257.0,0.3608]
[1724163333262,3.77024895,60261.0,60254.0,0.125862]
[1724163333558,0.3608,60255.0,60254.0,0.0595]
[1724163333764,0.427162,60255.0,60254.0,0.0595]
[1724163333960,0.925042,60255.0,60254.0,0.0595]
[1724163334151,0.3608,60255.0,60254.0,0.0595]
[1724163334461,0.85868,60255.0,60250.0,0.066366]
[1724163334763,3.77120895,60261.0,60253.0,0.066363]
[1724163334959,0.3608,60258.0,60253.0,0.066363]
[1724163335352,0.3608,60258.0,60248.0,0.00024895]
[1724163335353,0.3608,60258.0,60249.0,0.3608]
[1724163335863,3.77116895,60261.0,60251.0,0.3608]
[1724163336052,3.77024895,60261.0,60251.0,0.3608]
[1724163336248,0.3608,60272.0,60260.0,0.3608]
[1724163336459,0.3608,60272.0,60266.0,0.3608]
[1724163336657,0.066347,60269.0,60260.0,0.3608]
[1724163337071,0.3608,60272.0,60260.0,0.3608]
[1724163337358,0.066348,60268.0,60260.0,0.3608]
[1724163337558,0.3608,60266.0,60260.0,0.3608]
[1724163337760,0.3608,60266.0,60262.0,0.066354]
[1724163337963,0.3608,60266.0,60263.0,0.0578]
[1724163338161,0.3608,60266.0,60264.0,0.114]
[1724163338566,0.564151,60265.0,60264.0,0.114]
[1724163338756,0.964151,60265.0,60264.0,0.0586]
[1724163339065,0.42715,60266.0,60264.0,0.0586]
[1724163339066,0.3608,60266.0,60264.0,0.0586]
[1724163339967,0.066355,60261.0,60260.0,0.00024895]
[1724163340160,0.066355,60261.0,60256.0,0.3608]
[1724163340161,0.066359,60257.0,60256.0,0.3608]
[1724163340754,0.066363,60254.0,60253.0,0.0602]
[1724163341066,0.427163,60254.0,60253.0,0.0602]
[1724163341371,0.925043,60254.0,60253.0,0.0602]
[1724163341559,0.427163,60254.0,60253.0,0.0602]
[1724163341754,0.3608,60254.0,60253.0,0.0602]
[1724163342158,3.77108214,60257.0,60253.0,0.0602]
[1724163342363,3.77012214,60257.0,60253.0,0.0602]
[1724163342565,0.3608,60254.0,60247.0,0.00024895]
[1724163342768,0.42717,60248.0,60247.0,9.898e-05]
[1724163343260,1.32513,60248.0,60247.0,9.898e-05]
[1724163343460,0.066376,60242.0,60231.0,0.1119]
[1724163343660,0.4273358,60242.0,60231.0,0.1119]
[1724163343871,0.9917118,60242.0,60231.0,0.1119]
[1724163344071,0.4937118,60242.0,60231.0,0.1119]
[1724163344269,4.2637118,60242.0,60231.0,0.1119]
[1724163344570,4.1309598,60242.0,60235.0,0.00024895]
[1724163345171,0.3609598,60242.0,60241.0,0.06651347]
[1724163345470,0.00024895,60248.0,60247.0,0.066371]
[1724163345665,0.00024895,60248.0,60247.0,0.427171]
[1724163346464,0.066372,60246.0,60241.0,0.00013647]
[1724163346964,0.066375,60243.0,60241.0,0.00013647]
[1724163347360,0.066376,60242.0,60241.0,0.00013647]
[1724163347562,0.427176,60242.0,60241.0,0.00013647]
[1724163347774,0.066376,60242.0,60241.0,0.00013647]
[1724163349271,0.49804,60241.0,60214.0,0.0889505]
[1724163349462,0.066458,60168.0,60160.0,0.082578]
[1724163349774,0.066458,60168.0,60130.0,0.09390106]
[1724163349775,0.4456,60161.0,60151.0,0.06607318]
[1724163349964,0.06519211,60165.0,60161.0,0.18766765]
[1724163350165,0.066446,60179.0,60170.0,0.6258]
[1724163350358,0.3608,60187.0,60172.0,0.3608]
[1724163350560,0.08123328,60191.0,60172.0,0.3608]
[1724163350561,0.14230002,60191.0,60184.0,0.6258]
[1724163350763,0.00016984,60190.0,60184.0,0.6258]
[1724163351068,0.00016984,60190.0,60184.0,0.9866]
[1724163351369,0.00016984,60190.0,60185.0,0.2490802]
[1724163351576,3.77,60189.0,60177.0,0.3608]
[1724163351775,0.3608,60186.0,60176.0,0.066449]
[1724163352071,0.3608,60186.0,60173.0,0.00096]
[1724163352379,0.3608,60180.0,60171.0,0.3608]
[1724163352665,0.3608,60186.0,60177.0,0.3608]
[1724163353474,0.3608,60186.0,60173.0,0.62672]
[1724163353770,0.3608,60186.0,60173.0,0.6258]
[1724163353962,0.3608,60181.0,60169.0,0.0001673]
[1724163354374,0.3608,60176.0,60169.0,0.0001673]
[1724163354877,0.3608,60181.0,60170.0,0.60930221]
[1724163355172,0.00092,60189.0,60184.0,0.066439]
[1724163355375,0.00016984,60190.0,60188.0,0.427235]
[1724163355572,0.3608,60206.0,60194.0,0.066429]
[1724163355774,0.3608,60207.0,60193.0,0.3608]
[1724163356067,0.3608,60207.0,60171.0,0.0606]
[1724163356068,0.3608,60202.0,60181.0,0.3608]
[1724163356275,0.3608,60183.0,60174.0,0.3608]
[1724163356466,0.3608,60187.0,60174.0,0.3608]
[1724163356768,0.3608,60178.0,60168.0,0.3608]
[1724163357170,3.77,60177.0,60166.0,0.3608]
[1724163357482,3.77,60177.0,60161.0,0.3608]
[1724163357483,0.3608,60175.0,60161.0,0.3608]
[1724163358277,0.3608,60175.0,60161.0,0.427265]
[1724163358571,0.3608,60166.0,60151.0,0.3608]
[1724163358773,0.3608,60162.0,60149.0,0.3608]
[1724163358965,0.0554,60165.0,60154.0,0.3608]
[1724163359167,0.3608,60162.0,60154.0,0.3608]
[1724163359371,0.0554,60165.0,60154.0,0.3608]
[1724163359684,0.0554,60165.0,60154.0,0.427273]
[1724163359981,0.3608,60174.0,60164.0,0.3608]
[1724163360165,0.3608,60168.0,60161.0,0.3608]
[1724163360365,0.3608,60162.0,60154.0,0.3608]
[1724163360565,0.3608,60169.0,60157.0,0.3608]
[1724163360765,0.3608,60174.0,60162.0,0.3608]
[1724163360966,0.3608,60181.0,60163.0,0.4986]
[1724163361263,0.3608,60190.0,60176.0,0.066448]
[1724163361264,0.3608,60183.0,60176.0,0.066448]
[1724163361469,0.3608,60183.0,60174.0,0.3608]
[1724163361873,0.00088,60189.0,60179.0,0.3608]
[1724163362069,0.3608,60196.0,60189.0,0.066434]
[1724163362376,0.3608,60196.0,60174.0,0.4]
[1724163362377,0.00024918,60190.0,60182.0,0.066442]
[1724163362574,0.36104918,60190.0,60182.0,0.066442]
[1724163362879,0.36104918,60190.0,60178.0,0.36104918]
[1724163362880,0.3608,60185.0,60178.0,0.00024918]
[1724163363179,0.3608,60179.0,60178.0,0.00024918]
[1724163363677,0.3608,60179.0,60173.0,0.066452]
[1724163363879,0.3608,60179.0,60168.0,0.3608]
[1724163364179,0.3608,60218.0,60180.0,0.066444]
[1724163364365,0.3608,60218.0,60204.0,0.3608]
[1724163364566,0.3608,60218.0,60197.0,0.3608]
[1724163364567,0.3608,60218.0,60201.0,0.066421]
[1724163364870,3.8287,60217.0,60210.0,0.3608]
[1724163365177,3.8287,60217.0,60213.0,0.066407]
[1724163365474,0.00024918,60220.0,60219.0,0.066401]
[1724163365671,0.00024918,60220.0,60219.0,0.427201]
[1724163365866,0.3608,60229.0,60219.0,0.3608]
[1724163366271,0.3608,60220.0,60203.0,0.3608]
[1724163366576,0.3608,60215.0,60204.0,0.066418]
[1724163366777,0.3608,60207.0,60198.0,0.3608]
[1724163366976,0.3608,60215.0,60203.0,0.00024918]
[1724163367272,0.00024918,60216.0,60208.0,0.427213]
[1724163367474,0.00024918,60216.0,60213.0,0.066408]
[1724163367673,0.00024918,60216.0,60214.0,0.066407]
[1724163368477,3.77,60233.0,60215.0,1.124]
[1724163368677,3.77,60233.0,60226.0,0.3608]
[1724163368978,3.77,60233.0,60228.0,0.066391]
[1724163369179,0.3608,60255.0,60232.0,0.3608]
[1724163369363,0.3608,60255.0,60228.0,0.55]
[1724163369364,0.3608,60248.0,60238.0,0.3608]
[1724163369562,0.3608,60248.0,60231.0,0.3608]
[1724163369563,0.3608,60248.0,60233.0,0.24922561]
[1724163369768,0.066372,60246.0,60232.0,0.23256]
[1724163370067,0.3608,60233.0,60223.0,0.3608]
[1724163370465,0.066388,60232.0,60223.0,0.3608]
[1724163370666,0.3608,60233.0,60223.0,0.3608]
[1724163370875,0.0561,60231.0,60219.0,0.3608]
[1724163371078,0.0561,60231.0,60205.0,0.62664]
[1724163371079,0.066409,60212.0,60211.0,0.23252]
[1724163371267,0.7216,60212.0,60192.0,0.3608]
[1724163371574,0.066411,60211.0,60198.0,0.3608]
[1724163371880,3.77,60245.0,60222.0,0.3608]
[1724163372171,3.77,60245.0,60244.0,0.3608]
[1724163372371,3.77,60245.0,60235.0,0.3608]
[1724163372584,3.77,60245.0,60241.0,0.3608]
[1724163372585,0.123174,60244.0,60241.0,0.3608]
[1724163372780,0.0568,60244.0,60241.0,0.3608]
[1724163373076,0.0568,60244.0,60243.0,0.3608]
[1724163373467,0.0568,60244.0,60238.0,0.3608]
[1724163373468,0.95476,60244.0,60238.0,0.3608]
[1724163373671,0.066381,60238.0,60236.0,0.00024897]
[1724163373868,0.066381,60238.0,60225.0,0.3608]
[1724163373869,0.066385,60234.0,60230.0,0.3608]
[1724163374072,0.066387,60232.0,60230.0,0.3608]
[1724163374271,0.066387,60232.0,60225.0,0.3608]
[1724163374272,0.3608,60232.0,60225.0,0.3608]
[1724163374472,0.066406,60216.0,60204.0,0.3608]
[1724163374672,0.066401,60220.0,60210.0,0.3608]
[1724163374876,0.0568,60219.0,60210.0,0.3608]
[1724163375077,0.10526396,60219.0,60210.0,0.3608]
[1724163375273,0.0568,60219.0,60215.0,0.3608]
[1724163375674,0.4982,60218.0,60215.0,0.3608]
[1724163376074,0.564604,60217.0,60215.0,0.3608]
[1724163376578,0.4982,60216.0,60215.0,0.3608]
[1724163376778,0.4982,60216.0,60215.0,0.2678]
[1724163376981,0.8982,60216.0,60215.0,0.2678]
[1724163377180,0.8982,60216.0,60210.0,0.3608]
[1724163377375,0.06641,60212.0,60210.0,0.3608]
[1724163377576,0.04846396,60217.0,60216.0,0.066405]
[1724163377781,0.00024897,60221.0,60220.0,0.0664]
[1724163377984,0.00024897,60221.0,60220.0,0.4272]
[1724163378375,3.77024897,60221.0,60220.0,0.4272]
[1724163378877,0.59328,60249.0,60220.0,1.25896]
[1724163378878,0.04846396,60237.0,60220.0,1.25896]
[1724163379080,0.04846396,60241.0,60236.0,0.3608]
[1724163379271,3.77,60240.0,60236.0,0.3608]
[1724163380478,3.77,60240.0,60238.0,0.06638]
[1724163380884,3.77,60240.0,60239.0,0.498]
[1724163381279,3.77,60240.0,60239.0,0.898]
[1724163381488,3.77,60240.0,60239.0,0.498]
[1724163381782,0.00024897,60244.0,60239.0,0.898]
[1724163381983,0.00024897,60244.0,60243.0,0.3608]
[1724163382284,3.77024897,60244.0,60243.0,0.3608]
[1724163383783,3.77024897,60244.0,60243.0,0.31099838]
[1724163384575,0.0617,60261.0,60243.0,0.31099838]
[1724163384576,0.066344,60272.0,60256.0,0.066361]
[1724163384880,0.17001518,60290.0,60256.0,0.066361]
[1724163384881,0.0485564,60288.0,60276.0,0.066338]
[1724163385083,0.066339,60276.0,60267.0,0.3608]
[1724163385277,0.066339,60276.0,60262.0,0.3608]
[1724163385278,0.066353,60263.0,60262.0,0.3608]
[1724163385478,0.3608,60271.0,60257.0,0.3608]
[1724163385787,0.4093564,60276.0,60251.0,0.3608]
[1724163385788,0.066363,60254.0,60251.0,0.3608]
[1724163386089,0.066359,60258.0,60251.0,0.3608]
[1724163386280,0.0485564,60268.0,60257.0,0.427159]
[1724163386480,0.00024897,60269.0,60263.0,0.3608]
[1724163386990,0.066351,60265.0,60263.0,0.3608]
[1724163387194,3.77,60264.0,60263.0,0.3608]
[1724163387390,3.77,60264.0,60263.0,0.21499735]
[1724163387595,4.2678,60264.0,60263.0,0.21499735]
[1724163389081,4.2678,60264.0,60250.0,0.3608]
[1724163389082,0.066365,60252.0,60250.0,0.3608]
[1724163390190,0.066359,60258.0,60251.0,0.066366]
[1724163390391,3.8194364,60264.0,60250.0,0.3608]
[1724163390695,0.066365,60252.0,60250.0,0.3608]
[1724163391193,0.066365,60252.0,60250.0,0.30270565]
[1724163392389,0.066366,60251.0,60250.0,0.30270565]
[1724163393295,0.06084897,60257.0,60245.0,0.36104897]
[1724163393296,0.066363,60254.0,60245.0,0.36104897]
[1724163393594,0.0485564,60252.0,60250.0,0.3608]
[1724163394099,3.836366,60251.0,60250.0,0.3608]
[1724163394591,3.77,60251.0,60250.0,0.3608]
[1724163395496,3.836366,60251.0,60250.0,0.3608]
[1724163396094,0.066372,60246.0,60245.0,0.00024897]
[1724163396397,0.066372,60246.0,60245.0,0.36104897]
[1724163396986,4.1308,60251.0,60245.0,0.36104897]
[1724163396987,0.04870976,60248.0,60245.0,0.36104897]
[1724163397292,3.77088,60251.0,60250.0,0.066367]
[1724163397491,3.77088,60251.0,60250.0,0.427167]
[1724163397689,3.77,60251.0,60250.0,0.427167]
[1724163398993,3.77,60251.0,60250.0,0.3608]
[1724163399203,3.836366,60251.0,60250.0,0.3608]
[1724163399387,3.77,60251.0,60250.0,0.427167]
[1724163400295,0.00024897,60257.0,60254.0,0.066362]
[1724163400496,0.00024897,60257.0,60256.0,0.427161]
[1724163400702,3.77024897,60257.0,60256.0,0.427161]
[1724163400889,3.77024897,60257.0,60256.0,1.325041]
[1724163401091,0.04870976,60267.0,60256.0,1.50611921]
[1724163401399,0.3608,60287.0,60269.0,0.066346]
[1724163401400,0.04870976,60271.0,60269.0,0.066346]
[1724163401598,0.04870976,60278.0,60266.0,0.72252]
[1724163401892,0.04870976,60280.0,60277.0,0.3608]
[1724163402101,0.066336,60278.0,60277.0,0.3608]
[1724163402283,3.77,60281.0,60266.0,0.3608]
[1724163402490,3.77,60281.0,60274.0,0.3608]
[1724163402491,0.04876209,60276.0,60274.0,0.3608]
[1724163402685,0.066342,60273.0,60272.0,0.00024897]
[1724163403092,0.066342,60273.0,60272.0,0.36104897]
[1724163403303,0.066336,60278.0,60272.0,0.36104897]
[1724163403490,0.066336,60278.0,60277.0,0.3608]
[1724163404692,0.04876209,60278.0,60272.0,0.36104897]
[1724163404890,0.066342,60273.0,60272.0,0.36104897]
[1724163405195,0.132684,60273.0,60272.0,0.3608]
[1724163405394,0.066348,60267.0,60266.0,0.3608]
[1724163405586,0.04879238,60271.0,60269.0,0.066346]
[1724163405787,0.04879238,60275.0,60273.0,0.066342]
[1724163405994,0.04879238,60276.0,60272.0,0.3608]
[1724163406296,0.066342,60274.0,60272.0,0.3608]
[1724163406596,0.066342,60273.0,60272.0,0.3608]
[1724163406798,0.066346,60269.0,60268.0,0.00024897]
[1724163407493,3.836346,60269.0,60268.0,0.00024897]
[1724163407695,3.902692,60269.0,60268.0,0.00024897]
[1724163408089,3.93130524,60269.0,60268.0,0.00024897]
[1724163408489,3.93130524,60269.0,60261.0,0.3608]
[1724163408490,3.836346,60269.0,60261.0,0.3608]
[1724163408787,0.04890372,60265.0,60261.0,0.3608]
[1724163408994,0.04890496,60264.0,60263.0,0.066353]
[1724163409189,3.77,60269.0,60261.0,0.3608]
[1724163409393,3.77,60269.0,60266.0,0.3608]
[1724163409595,0.066348,60267.0,60266.0,0.3608]
[1724163409900,3.77088,60269.0,60261.0,0.3608]
[1724163410097,0.066348,60267.0,60261.0,0.36104897]
[1724163410300,0.066354,60262.0,60261.0,0.36104897]
[1724163410990,3.77,60269.0,60261.0,0.36104897]
[1724163411196,3.77,60269.0,60264.0,0.066351]
[1724163411197,0.06635,60266.0,60264.0,0.066351]
[1724163411391,3.77100001,60269.0,60265.0,0.066351]
[1724163411702,3.77100001,60269.0,60267.0,0.3608]
[1724163411703,3.77,60269.0,60267.0,0.3608]
[1724163412102,3.77,60269.0,60268.0,0.066347]
[1724163412595,3.77,60269.0,60268.0,0.964107]
[1724163412797,0.066347,60268.0,60267.0,0.3608]
[1724163413000,0.132694,60268.0,60267.0,0.3608]
[1724163413303,0.066347,60268.0,60267.0,0.3608]
[1724163413999,3.77088,60269.0,60261.0,0.36104897]
[1724163414000,4.13168,60269.0,60261.0,0.36104897]
[1724163414193,0.066353,60263.0,60261.0,0.36104897]
[1724163414699,0.066354,60262.0,60261.0,0.36104897]
[1724163415600,0.14792878,60268.0,60265.0,0.066351]
[1724163415601,0.08158078,60268.0,60265.0,0.066351]
[1724163415801,0.14792778,60269.0,60266.0,0.3608]
[1724163416004,0.08158078,60270.0,60268.0,0.066347]
[1724163416400,0.08158078,60271.0,60269.0,0.066346]
[1724163416603,0.00024897,60274.0,60266.0,0.3608]
[1724163416604,3.77,60270.0,60266.0,0.3608]
[1724163416799,3.77,60270.0,60269.0,0.066346]
[1724163419405,0.04895707,60271.0,60270.0,0.066345]
[1724163419605,0.04920604,60274.0,60270.0,0.3608]
[1724163419801,0.00024897,60274.0,60270.0,0.3608]
[1724163420100,3.77024897,60274.0,60273.0,0.066342]
[1724163420303,3.81920604,60274.0,60273.0,0.066342]
[1724163420498,3.77024897,60274.0,60273.0,0.466342]
[1724163421002,3.77024897,60274.0,60270.0,0.3608]
[1724163421205,0.066344,60271.0,60270.0,0.3608]
[1724163422004,3.77,60271.0,60270.0,0.3608]
[1724163422208,0.00024897,60274.0,60273.0,0.066342]
[1724163422400,0.00024897,60274.0,60270.0,0.3608]
[1724163422596,0.066344,60271.0,60270.0,0.3608]
[1724163422802,3.836344,60271.0,60261.0,0.00024897]
[1724163423101,0.04897965,60270.0,60267.0,0.066349]
[1724163423300,3.836344,60271.0,60266.0,0.3608]